[Event "Aktogay Masters 2019"]
[Site "Aktogay"]
[Date "2019.05.15"]
[Round "6.4"]
[White "Kim, Kristina"]
[Black "Sukhov, Artur"]
[Result "1/2-1/2"]
[ECO "D02"]
[WhiteElo "1916"]
[BlackElo "2110"]
[Annotator "NA"]
[PlyCount "112"]
[EventDate "2019.05.11"]
[EventType "tourn"]
[EventCountry "KAZ"]
[SourceTitle "playchess.com"]
[Source "ChessBase"]
[SourceQuality "1"]
[TimeControl "5400+30"]

1. d4 {[%emt 0:01:23]} Nf6 {[%emt 0:00:00]} 2. Bf4 {[%emt 0:00:03]} d5 {[%emt 0:00:00]} 3. e3 {[%emt 0:00:07]} e6 {[%emt 0:00:00]} 4. Nf3 {[%emt 0:00:13]} Bd6 {[%emt 0:00:00]} 5. Bg3 {[%emt 0:00:05]} O-O {[%emt 0:00:44]} 6. Bd3 {[%emt 0:00:07]} c5 {[%emt 0:00:13]} 7. c3 {[%emt 0:00:04]} Nc6 {[%emt 0:00:07]} 8. Nbd2 {[%emt 0:00:09]} h6 {[%emt 0:03:36]} 9. Qe2 {[%emt 0:00:32]} cxd4 {[%emt 0:01:33]} 10. exd4 {[%emt 0:00:05]} Qc7 {[%emt 0:01:57]} 11. Ne5 {[%emt 0:01:17]} Nd7 {[%emt 0:03:21]} 12. f4 {[%emt 0:00:14]} Re8 {[%emt 0:02:00]} 13. O-O {[%emt 0:00:06]} f6 {[%emt 0:02:07]} 14. Qh5 {[%emt 0:02:26]} Re7 {[%emt 0:03:24]} 15. Ng6 {[%emt 0:00:33]} Rf7 {[%emt 0:00:22]} 16. Rae1 {[%emt 0:00:12]} Nf8 {[%emt 0:00:50]} 17. Nxf8 {[%emt 0:00:17]} Rxf8 {[%emt 0:01:07]} 18. Qg6 {[%emt 0:00:09]} f5 {[%emt 0:01:03]} 19. Re2 {[%emt 0:05:04]} Bd7 {[%emt 0:04:03]} 20. Qh5 {[%emt 0:04:53]} Rae8 {[%emt 0:00:49]} 21. Nb3 {[%emt 0:03:28]} Na5 {[%emt 0:01:27]} 22. Nxa5 {[%emt 0:00:40]} Qxa5 {[%emt 0:00:08]} 23. a3 {[%emt 0:00:14]} Qc7 {[%emt 0:02:13]} 24. Qf3 {[%emt 0:05:12]} b5 {[%emt 0:01:32]} 25. Be1 {[%emt 0:03:22]} a5 {[%emt 0:00:50]} 26. Bd2 {[%emt 0:00:14]} Qb6 {[%emt 0:01:42]} 27. g4 {[%emt 0:00:53]} fxg4 {[%emt 0:08:13]} 28. Qxg4 {[%emt 0:00:18]} Rf6 {[%emt 0:00:17]} 29. Rg2 {[%emt 0:02:34]} Re7 {[%emt 0:00:18]} 30. Qh4 {[%emt 0:00:17]} Kf8 {[%emt 0:04:44]} 31. Kh1 {[%emt 0:02:25]} Ref7 {[%emt 0:05:33]} 32. Bg6 {[%emt 0:00:51]} Rxg6 {[%emt 0:04:25]} 33. Rxg6 {[%emt 0:00:11]} Be7 {[%emt 0:00:02]} 34. Qe1 {[%emt 0:03:04]} Bf6 {[%emt 0:00:39]} 35. Rfg1 {[%emt 0:02:34]} b4 {[%emt 0:03:42]} 36. axb4 {[%emt 0:00:10]} axb4 {[%emt 0:00:05]} 37. Qe2 {[%emt 0:04:09]} Bb5 {[%emt 0:00:45]} 38. Qe3 {[%emt 0:01:45]} Qa6 {[%emt 0:04:18]} 39. R6g3 {[%emt 0:12:41]} Bh4 {[%emt 0:03:13]} 40. Rh3 {[%emt 0:00:24]} g5 {[%emt 0:01:54]} 41. f5 {[%emt 0:08:15]} exf5 {[%emt 0:03:34]} 42. c4 {[%emt 0:01:16]} dxc4 {[%emt 0:01:22]} 43. Bxb4+ {[%emt 0:03:24]} Kg8 {[%emt 0:00:32]} 44. d5 {[%emt 0:01:40]} Kh7 {[%emt 0:06:03]} 45. Bc3 {[%emt 0:03:18]} Qa8 {[%emt 0:10:12]} 46. Qe5 {[%emt 0:00:28]} Qe8 {[%emt 0:00:42]} 47. Re3 {[%emt 0:11:12]} Qxe5 {[%emt 0:00:41]} 48. Rxe5 {[%emt 0:00:06]} g4 {[%emt 0:00:44]} 49. Rf1 {[%emt 0:00:38]} f4 {[%emt 0:00:45]} 50. Re4 {[%emt 0:00:36]} Bg5 {[%emt 0:00:18]} 51. h4 {[%emt 0:02:02]} gxh3 {[%emt 0:00:20]} 52. Kh2 {[%emt 0:00:40]} Bd7 {[%emt 0:01:49]} 53. Bd2 {[%emt 0:01:45]} Bf5 {[%emt 0:02:19]} 54. Rxc4 {[%emt 0:00:45]} Bd3 {[%emt 0:00:31]} 55. Rcxf4 {[%emt 0:00:09]} Bxf4+ {[%emt 0:00:07]} 56. Rxf4 {[%emt 0:00:04]} Rxf4 {[%emt 0:00:15]} 1/2-1/2

[Event "Aktogay Masters 2019"]
[Site "Aktogay"]
[Date "2019.05.15"]
[Round "6.5"]
[White "Kuznetsov, Andrei S."]
[Black "Vlassov, Nikolai"]
[Result "0-1"]
[ECO "B50"]
[WhiteElo "2261"]
[BlackElo "2393"]
[Annotator "NA"]
[PlyCount "84"]
[EventDate "2019.05.11"]
[EventType "tourn"]
[EventCountry "KAZ"]
[SourceTitle "playchess.com"]
[Source "ChessBase"]
[SourceQuality "1"]
[TimeControl "5400+30"]

1. e4 {[%emt 0:01:45]} c5 {[%emt 0:00:00]} 2. Nf3 {[%emt 0:00:10]} d6 {[%emt 0:00:00]} 3. c3 {[%emt 0:00:23]} Nf6 {[%emt 0:00:00]} 4. h3 {[%emt 0:01:05]} g6 5. Bd3 {[%emt 1:29:07]} Bg7 {[%emt 0:00:25]} 6. O-O {[%emt 0:00:00]} O-O 7. Bc2 {[%emt 0:01:00]} Nc6 {[%emt 0:01:17]} 8. a3 {[%emt 0:00:30]} e5 {[%emt 1:32:18]} 9. b4 {[%emt 0:00:00]} c4 10. d4 {[%emt 0:01:00]} cxd3 {[%emt 0:00:00]} 11. Bxd3 {[%emt 0:00:30]} d5 {[%emt 0:01:30]} 12. Nbd2 {[%emt 0:00:30]} Nxe4 {[%emt 0:00:30]} 13. Nxe4 {[%emt 0:00:00]} dxe4 {[%emt 0:00:00]} 14. Bxe4 {[%emt 0:01:00]} Be6 {[%emt 0:01:00]} 15. Qe2 {[%emt 0:00:00]} Qc7 16. Re1 {[%emt 0:00:00]} Ne7 17. Qb5 {[%emt 0:00:00]} Rab8 18. Bg5 {[%emt 0:00:00]} Bc4 19. Qc5 {[%emt 0:02:30]} Qxc5 {[%emt 0:00:00]} 20. bxc5 {[%emt 0:00:00]} f6 21. Nxe5 {[%emt 0:01:00]} fxg5 {[%emt 0:00:00]} 22. Nxc4 {[%emt 0:00:00]} Bxc3 {[%emt 0:00:00]} 23. Nd6 {[%emt 0:00:00]} Bxa1 24. Rxa1 {[%emt 0:01:30]} Nf5 {[%emt 0:05:00]} 25. Nxb7 {[%emt 0:00:30]} Rbc8 {[%emt 0:00:30]} 26. c6 {[%emt 0:00:30]} Nd4 {[%emt 0:00:30]} 27. Rd1 {[%emt 0:00:00]} Ne2+ {[%emt 0:00:30]} 28. Kh2 {[%emt 0:00:00]} Nc3 {[%emt 0:00:00]} 29. Rd4 {[%emt 0:00:00]} Nxe4 {[%emt 0:00:00]} 30. Rxe4 {[%emt 0:00:00]} Rxc6 {[%emt 0:00:00]} 31. f3 {[%emt 0:00:00]} Kf7 {[%emt 0:00:00]} 32. Ra4 {[%emt 0:00:00]} a6 {[%emt 0:00:00]} 33. Na5 {[%emt 0:00:00]} Re6 {[%emt 0:00:00]} 34. Nb3 {[%emt 0:00:00]} Rc8 {[%emt 0:00:00]} 35. Nd2 {[%emt 0:00:00]} h6 {[%emt 0:00:00]} 36. Ne4 {[%emt 0:00:00]} Rb6 {[%emt 0:00:00]} 37. Rd4 {[%emt 0:00:00]} Rc2 {[%emt 0:00:00]} 38. Nd6+ {[%emt 0:00:00]} Kf6 {[%emt 0:00:00]} 39. Nc4 {[%emt 0:00:00]} Re6 {[%emt 0:00:00]} 40. f4 {[%emt 0:00:00]} h5 {[%emt 0:00:00]} 41. h4 {[%emt 0:00:00]} gxf4 {[%emt 0:00:00]} 42. Rxf4+ {[%emt 0:00:00]} Ke7 {[%emt 0:00:00]} 0-1

[Event "Aktogay Masters 2019"]
[Site "Aktogay"]
[Date "2019.05.15"]
[Round "7.1"]
[White "Sukhov, Artur"]
[Black "Khusenkhojaev, Muhammad"]
[Result "0-1"]
[ECO "A50"]
[WhiteElo "2110"]
[BlackElo "2445"]
[Annotator "ChessBase"]
[PlyCount "58"]
[EventDate "2019.05.11"]
[EventType "tourn"]
[EventCountry "KAZ"]
[SourceTitle "playchess.com"]
[Source "ChessBase"]
[SourceQuality "1"]
[TimeControl "5400+30"]

1. d4 {[%emt 0:00:00]} Nf6 {[%emt 0:00:00]} 2. c4 {[%emt 0:00:00]} g6 {[%emt 0:00:00]} 3. Nf3 {[%emt 0:00:00]} Bg7 {[%emt 0:00:00]} 4. g3 {[%emt 0:01:16]} b6 {[%emt 0:00:11]} 5. Bg2 {[%emt 0:00:08]} Bb7 {[%emt 0:00:03]} 6. O-O {[%emt 0:00:07]} O-O {[%emt 0:00:10]} 7. Nc3 {[%emt 0:01:08]} Ne4 {[%emt 0:00:12]} 8. Nxe4 Bxe4 {[%emt 0:00:05]} 9. b3 {[%emt 0:08:29]} c5 {[%emt 0:00:43]} 10. Bb2 {[%emt 0:00:35]} Nc6 {[%emt 0:00:22]} 11. e3 {[%emt 0:02:02]} d5 {[%emt 0:00:51]} 12. Qe2 {[%emt 0:11:15]} dxc4 13. Qxc4 {[%emt 0:00:58]} cxd4 {[%emt 0:12:32]} 14. Bxd4 {[%emt 0:10:26]} Nxd4 {[%emt 0:03:05]} 15. Nxd4 {[%emt 0:01:04]} Rc8 {[%emt 0:02:35]} 16. Qe2 {[%emt 0:02:52]} Bxd4 {[%emt 0:01:56]} 17. exd4 {[%emt 0:16:49]} Bxg2 {[%emt 0:00:20]} 18. Kxg2 {[%emt 0:00:05]} Qd5+ {[%emt 0:01:30]} 19. Kg1 {[%emt 0:02:22]} Rc7 {[%emt 0:00:46]} 20. Rac1 {[%emt 0:01:00]} Rfc8 {[%emt 0:00:10]} 21. Rxc7 {[%emt 0:07:36]} Rxc7 {[%emt 0:00:19]} 22. Rd1 {[%emt 0:01:13]} e6 {[%emt 0:02:48]} 23. Qe5 {[%emt 0:04:29]} Qxe5 {[%emt 0:00:23]} 24. dxe5 {[%emt 0:00:05]} Rc2 {[%emt 0:00:18]} 25. a4 {[%emt 0:01:42]} Rc3 {[%emt 0:00:59]} 26. Rd7 {[%emt 0:08:03]} a5 {[%emt 0:02:29]} 27. b4 {[%emt 0:02:48]} axb4 {[%emt 0:00:10]} 28. Rd6 {[%emt 0:00:08]} b5 {[%emt 0:01:25]} 29. axb5 {[%emt 0:08:12]} b3 {[%emt 0:00:11]} 0-1

[Event "Aktogay Masters 2019"]
[Site "Aktogay"]
[Date "2019.05.15"]
[Round "7.3"]
[White "Nukin, Tolegen"]
[Black "Igambergenov, Alibek"]
[Result "0-1"]
[ECO "B25"]
[WhiteElo "2113"]
[BlackElo "2295"]
[Annotator "ChessBase"]
[PlyCount "72"]
[EventDate "2019.05.11"]
[EventType "tourn"]
[EventCountry "KAZ"]
[SourceTitle "playchess.com"]
[Source "ChessBase"]
[SourceQuality "1"]
[TimeControl "5400+30"]

1. e4 {[%emt 0:00:00]} c5 {[%emt 0:02:40]} 2. Nc3 {[%emt 0:00:00]} d6 {[%emt 0:00:07]} 3. g3 {[%emt 0:00:00]} g6 {[%emt 0:00:05]} 4. Bg2 {[%emt 0:00:00]} Bg7 {[%emt 0:00:04]} 5. d3 {[%emt 0:00:13]} Nc6 {[%emt 0:00:06]} 6. f4 {[%emt 0:00:10]} e6 {[%emt 0:01:09]} 7. Nf3 {[%emt 0:00:08]} Nge7 {[%emt 0:00:07]} 8. O-O {[%emt 0:00:39]} O-O {[%emt 0:00:06]} 9. Bd2 {[%emt 0:00:17]} a6 {[%emt 0:00:39]} 10. Rb1 {[%emt 0:00:26]} b5 {[%emt 0:00:50]} 11. a3 {[%emt 0:00:04]} Bb7 {[%emt 0:01:15]} 12. Ne2 {[%emt 0:00:46]} d5 {[%emt 0:06:31]} 13. e5 {[%emt 0:00:36]} f6 {[%emt 0:00:29]} 14. exf6 {[%emt 0:00:49]} Bxf6 {[%emt 0:00:04]} 15. Ng5 {[%emt 0:04:32]} Qd6 {[%emt 0:01:13]} 16. h4 {[%emt 0:09:26]} Nf5 {[%emt 0:05:54]} 17. c3 {[%emt 0:00:36]} Rae8 {[%emt 0:03:50]} 18. b4 {[%emt 0:00:27]} Kg7 {[%emt 0:04:58]} 19. Kh2 {[%emt 0:02:23]} cxb4 {[%emt 0:00:56]} 20. axb4 {[%emt 0:00:44]} e5 {[%emt 0:00:22]} 21. Qb3 {[%emt 0:04:23]} h6 {[%emt 0:13:44]} 22. Nh3 {[%emt 0:00:33]} e4 {[%emt 0:00:06]} 23. d4 {[%emt 0:04:28]} Nce7 {[%emt 0:01:41]} 24. Qd1 {[%emt 0:03:41]} Nc8 {[%emt 0:00:41]} 25. Nc1 {[%emt 0:01:57]} Nb6 {[%emt 0:00:15]} 26. Ne2 {[%emt 0:13:20]} Nc4 {[%emt 0:00:49]} 27. Qc1 {[%emt 0:02:21]} Bc8 {[%emt 0:02:25]} 28. Ra1 {[%emt 0:01:58]} Rh8 {[%emt 0:02:06]} 29. Kg1 {[%emt 0:02:06]} Qd7 {[%emt 0:01:42]} 30. Ra2 {[%emt 0:01:17]} Qc6 {[%emt 0:05:01]} 31. Ra1 {[%emt 0:00:29]} Nfd6 {[%emt 0:01:14]} 32. Ra2 {[%emt 0:04:52]} Bg4 {[%emt 0:04:07]} 33. Be1 {[%emt 0:00:25]} Nf5 {[%emt 0:01:49]} 34. Bf2 {[%emt 0:02:06]} e3 {[%emt 0:01:06]} 35. Be1 {[%emt 0:00:04]} Nd2 {[%emt 0:00:07]} 36. Qa1 {[%emt 0:01:49]} Bxe2 {[%emt 0:01:53]} 0-1

[Event "Aktogay Masters 2019"]
[Site "Aktogay"]
[Date "2019.05.15"]
[Round "7.4"]
[White "Vlassov, Nikolai"]
[Black "Kim, Kristina"]
[Result "1-0"]
[ECO "B06"]
[WhiteElo "2393"]
[BlackElo "1916"]
[Annotator "ChessBase"]
[PlyCount "49"]
[EventDate "2019.05.11"]
[EventType "tourn"]
[EventCountry "KAZ"]
[SourceTitle "playchess.com"]
[Source "ChessBase"]
[SourceQuality "1"]
[TimeControl "5400+30"]

1. e4 {[%emt 0:00:00]} g6 {[%emt 0:00:00]} 2. h4 {[%emt 0:01:11]} h6 {[%emt 0:00:01]} 3. d4 {[%emt 0:00:26]} Bg7 {[%emt 0:00:08]} 4. Nc3 {[%emt 0:00:10]} c6 {[%emt 0:00:09]} 5. Bc4 {[%emt 0:05:38]} d6 {[%emt 0:03:14]} 6. h5 {[%emt 0:01:47]} gxh5 {[%emt 0:01:09]} 7. Nge2 {[%emt 0:03:15]} Nf6 {[%emt 0:02:03]} 8. Nf4 {[%emt 0:04:26]} b5 {[%emt 0:01:02]} 9. Bb3 {[%emt 0:00:33]} b4 {[%emt 0:00:39]} 10. Nxh5 {[%emt 0:10:21]} Nxh5 {[%emt 0:01:31]} 11. Qxh5 {[%emt 0:00:21]} e6 {[%emt 0:00:58]} 12. Ne2 {[%emt 0:00:10]} d5 {[%emt 0:06:06]} 13. Qg4 {[%emt 0:03:25]} Bf8 {[%emt 0:04:25]} 14. Bd2 {[%emt 0:07:23]} a5 {[%emt 0:00:28]} 15. c3 {[%emt 0:00:12]} a4 {[%emt 0:00:42]} 16. Bc2 {[%emt 0:00:10]} a3 {[%emt 0:00:08]} 17. bxa3 {[%emt 0:09:48]} bxc3 {[%emt 0:03:25]} 18. Nxc3 {[%emt 0:00:46]} Qb6 {[%emt 0:01:38]} 19. exd5 {[%emt 0:01:19]} Qb2 {[%emt 0:00:55]} 20. Rc1 {[%emt 0:00:31]} Rxa3 {[%emt 0:00:27]} 21. Na4 {[%emt 0:48:38]} Qxa2 {[%emt 0:04:06]} 22. Nb6 {[%emt 0:00:00]} Bd7 {[%emt 0:02:56]} 23. Qf4 {[%emt 0:00:00]} Na6 {[%emt 0:01:35]} 24. Nxd7 {[%emt 0:00:00]} Kxd7 {[%emt 0:04:03]} 25. Qf6 {[%emt 0:00:00]} 1-0

[Event "Aktogay Masters 2019"]
[Site "Aktogay"]
[Date "2019.05.16"]
[Round "8.5"]
[White "Sukhov, Artur"]
[Black "Vlassov, Nikolai"]
[Result "0-1"]
[ECO "E33"]
[WhiteElo "2110"]
[BlackElo "2393"]
[Annotator "NA RC"]
[PlyCount "76"]
[EventDate "2019.05.11"]
[EventType "tourn"]
[EventCountry "KAZ"]
[SourceTitle "playchess.com"]
[Source "ChessBase"]
[SourceQuality "1"]
[TimeControl "5400+30"]

1. d4 {[%emt 0:00:00]} Nf6 {[%emt 0:00:00]} 2. c4 {[%emt 0:00:00]} Nc6 {[%emt 0:00:00]} 3. Nf3 {[%emt 0:00:00]} e6 {[%emt 0:00:15]} 4. Nc3 {[%emt 0:00:16]} Bb4 {[%emt 0:00:07]} 5. Bd2 {[%emt 0:00:18]} O-O {[%emt 0:01:07]} 6. e3 {[%emt 0:00:05]} d6 {[%emt 0:00:31]} 7. a3 {[%emt 0:00:35]} Bxc3 {[%emt 0:00:07]} 8. Bxc3 {[%emt 0:00:07]} Qe7 {[%emt 0:02:19]} 9. Be2 {[%emt 0:03:02]} e5 {[%emt 0:00:17]} 10. dxe5 {[%emt 0:02:17]} dxe5 {[%emt 0:00:03]} 11. Qc2 {[%emt 0:01:14]} Bg4 {[%emt 0:00:36]} 12. O-O {[%emt 0:01:50]} a5 {[%emt 0:00:20]} 13. h3 {[%emt 0:02:26] E33: Nimzo-Indian: Classical: 4...Nc6} Bh5 {[%emt 0:00:21]} 14. b3 {[%emt 0:00:07]} Rfe8 {[%emt 1:30:57]} 15. Qb2 {[%emt 0:15:26]} (15. Rfd1 Bg6 16. Qb2 Ne4 17. Be1 Nd6 18. Bc3 Ne4 19. Be1 Nd6 20. Bc3 {½-½ (20) Malakhatko,V (2511)-Tregubov,P (2589) Bastia 2017}) 15... Ne4 {[%emt 0:00:00]} 16. Rfe1 $146 {[%emt 0:12:15]} ({Predecessor:} 16. Be1 Nc5 17. b4 Bxf3 18. gxf3 {0-1 (40) Landgren,A (2276)-Schneider,S (2365) Sweden 2019}) 16... Nc5 {[%emt 0:00:00]} 17. Rad1 {[%emt 0:58:32]} e4 {[%emt 0:00:00]} 18. Nd4 {[%emt 0:00:00]} Bxe2 {[%emt 0:00:00]} 19. Qxe2 {[%emt 0:00:00]} Nd3 {[%emt 0:02:30]} 20. Rf1 {[%emt 0:01:30]} Nxd4 {[%emt 0:03:00]} 21. Bxd4 {[%emt 0:00:00]} Qxa3 {[%emt 0:00:30]} 22. Qg4 {[%emt 0:00:00]} Qf8 {[%emt 0:00:00]} 23. f3 {[%emt 0:00:00] [#]} Nc5 $1 {[%emt 0:01:00]} 24. Qf4 {[%emt 0:02:00]} (24. Bb2 $15) 24... Nxb3 {[%emt 0:00:00]} 25. Qxc7 {[%emt 0:00:00]} Qe7 {[%emt 0:00:00]} 26. Qf4 {[%emt 0:01:00]} a4 {[%emt 0:02:30]} 27. fxe4 {[%emt 0:00:30]} f6 {[%emt 0:00:00]} 28. Qg4 {[%emt 0:00:30]} Qxe4 {[%emt 0:00:00]} 29. Rf4 {[%emt 0:00:30] [#]} Qg6 $1 {[%emt 0:00:00]} 30. Qf3 {[%emt 0:00:00]} Qf7 {[%emt 0:00:00]} 31. g4 $2 {[%emt 0:00:00]} (31. Bc3 {was called for.}) 31... Ra5 {[%emt 0:00:00]} (31... a3 $142 32. g5 a2) 32. Bc3 $17 {[%emt 0:00:00]} Rc5 {[%emt 0:00:00]} 33. Bb4 {[%emt 0:00:00]} Rce5 {[%emt 0:00:00]} 34. Rd3 {[%emt 0:02:30]} h5 {[%emt 0:00:00]} 35. h4 {[%emt 0:00:00]} Qg6 {[%emt 0:00:00]} 36. Rd7 {[%emt 0:00:21]} Re4 {[%emt 0:00:00]} 37. Rxb7 {[%emt 0:00:31]} hxg4 {[%emt 0:00:00]} 38. Qg3 Rxe3 {[%emt 0:06:00]} 0-1

[Event "Aktogay Masters 2019"]
[Site "Aktogay"]
[Date "2019.05.17"]
[Round "9.1"]
[White "Vlassov, Nikolai"]
[Black "Khusenkhojaev, Muhammad"]
[Result "0-1"]
[ECO "A11"]
[WhiteElo "2393"]
[BlackElo "2445"]
[Annotator "NA"]
[PlyCount "102"]
[EventDate "2019.05.11"]
[EventType "tourn"]
[EventCountry "KAZ"]
[SourceTitle "playchess.com"]
[Source "ChessBase"]
[SourceQuality "1"]
[TimeControl "5400+30"]

1. c4 {[%emt 0:00:00]} Nf6 {[%emt 0:00:14]} 2. g3 {[%emt 0:00:22]} c6 {[%emt 0:00:16]} 3. b3 {[%emt 0:00:59]} g6 {[%emt 0:04:17]} 4. Bb2 {[%emt 0:00:48]} Bg7 {[%emt 0:00:06]} 5. Bg2 {[%emt 0:00:17]} d5 {[%emt 0:00:21]} 6. Nf3 {[%emt 0:00:26]} O-O {[%emt 0:00:23]} 7. O-O {[%emt 0:00:06]} Nbd7 {[%emt 0:00:54]} 8. d3 {[%emt 0:03:17]} Re8 {[%emt 0:07:06]} 9. cxd5 {[%emt 0:05:54]} cxd5 {[%emt 0:00:14]} 10. Nc3 {[%emt 0:00:16]} a6 {[%emt 0:05:41]} 11. Rc1 {[%emt 0:01:04]} b5 {[%emt 0:00:51]} 12. e4 {[%emt 0:01:51]} dxe4 {[%emt 0:01:09]} 13. dxe4 {[%emt 0:00:15]} Nb6 {[%emt 0:24:58]} 14. e5 {[%emt 0:03:37]} Nfd5 {[%emt 0:01:47]} 15. Nxd5 {[%emt 0:02:17]} Nxd5 {[%emt 0:01:50]} 16. Ng5 {[%emt 0:00:35]} e6 {[%emt 0:03:12]} 17. Ne4 {[%emt 0:02:05]} Re7 {[%emt 0:02:38]} 18. Qd2 {[%emt 0:08:42]} Bb7 {[%emt 0:01:34]} 19. Rfd1 {[%emt 0:09:43]} Rc7 {[%emt 0:01:36]} 20. Nd6 {[%emt 0:05:35]} Rxc1 {[%emt 0:01:21]} 21. Rxc1 {[%emt 0:04:36]} Rb8 {[%emt 0:00:46]} 22. Bd4 {[%emt 0:07:07]} Qd7 {[%emt 0:12:43]} 23. Qa5 {[%emt 0:01:20]} Bh6 {[%emt 0:03:44]} 24. f4 {[%emt 0:03:08]} Bf8 {[%emt 0:00:26]} 25. Bxd5 {[%emt 0:02:30]} Bxd6 {[%emt 0:00:57]} 26. Bxb7 {[%emt 0:01:14]} Bf8 {[%emt 0:01:43]} 27. Bf2 {[%emt 0:04:41]} Qxb7 {[%emt 0:00:29]} 28. Qc7 {[%emt 0:00:08]} Qxc7 {[%emt 0:02:07]} 29. Rxc7 {[%emt 0:00:03]} Rd8 {[%emt 0:00:11]} 30. g4 {[%emt 0:06:44]} h6 {[%emt 0:02:13]} 31. Kf1 {[%emt 0:07:56]} Bg7 {[%emt 0:10:41]} 32. Ra7 {[%emt 0:05:43]} g5 {[%emt 0:00:13]} 33. fxg5 {[%emt 0:00:08]} hxg5 {[%emt 0:00:04]} 34. Rxa6 {[%emt 0:01:20]} Bxe5 {[%emt 0:00:55]} 35. h3 {[%emt 0:02:01]} b4 {[%emt 0:03:01]} 36. Ke2 {[%emt 0:00:55]} Rc8 {[%emt 0:00:58]} 37. Kd3 {[%emt 0:02:21]} Rc3+ {[%emt 0:00:11]} 38. Ke4 {[%emt 0:00:02]} Bf6 {[%emt 0:02:55]} 39. Be3 {[%emt 0:00:35]} Kh7 {[%emt 0:01:38]} 40. Bd2 {[%emt 0:04:14]} Rxh3 {[%emt 0:00:07]} 41. Bxb4 {[%emt 0:00:02]} Rg3 {[%emt 0:00:17]} 42. Bd6 {[%emt 0:00:01]} Rxg4+ {[%emt 0:00:13]} 43. Kf3 {[%emt 0:00:02]} Rd4 {[%emt 0:01:15]} 44. b4 {[%emt 0:00:02]} g4+ {[%emt 0:00:15]} 45. Ke3 {[%emt 0:00:28]} g3 {[%emt 0:01:50]} 46. Bxg3 {[%emt 0:00:38]} Rxb4 {[%emt 0:00:08]} 47. a4 {[%emt 0:00:10]} Bd4+ {[%emt 0:01:21]} 48. Kf3 {[%emt 0:00:27]} Rb3+ {[%emt 0:00:48]} 49. Kg2 {[%emt 0:00:14]} Kg6 {[%emt 0:00:16]} 50. a5 {[%emt 0:00:20]} Kf5 {[%emt 0:00:38]} 51. Rd6 {[%emt 0:00:33]} Rxg3+ {[%emt 0:00:08]} 0-1

[Event "Aktogay Masters 2019"]
[Site "Aktogay"]
[Date "2019.05.17"]
[Round "9.2"]
[White "Suleymenov, Alisher"]
[Black "Igambergenov, Alibek"]
[Result "1/2-1/2"]
[ECO "D43"]
[WhiteElo "2435"]
[BlackElo "2295"]
[Annotator "NA"]
[PlyCount "93"]
[EventDate "2019.05.11"]
[EventType "tourn"]
[EventCountry "KAZ"]
[SourceTitle "playchess.com"]
[Source "ChessBase"]
[SourceQuality "1"]
[TimeControl "5400+30"]

1. d4 {[%emt 0:00:00]} Nf6 {[%emt 0:02:30]} 2. c4 {[%emt 0:00:00]} e6 {[%emt 0:00:07]} 3. Nf3 {[%emt 0:00:36]} d5 {[%emt 0:00:05]} 4. Bg5 {[%emt 0:01:22]} h6 {[%emt 0:01:10]} 5. Bxf6 {[%emt 0:00:21]} Qxf6 {[%emt 0:00:06]} 6. Nc3 {[%emt 0:00:39]} c6 {[%emt 0:00:21]} 7. Qb3 {[%emt 0:00:33]} dxc4 {[%emt 0:03:40]} 8. Qxc4 {[%emt 0:00:07]} Nd7 {[%emt 0:00:05]} 9. Rd1 {[%emt 0:11:34]} Be7 {[%emt 0:06:01]} 10. e3 {[%emt 0:01:41]} Qg6 {[%emt 0:08:37]} 11. Be2 {[%emt 0:16:46]} O-O {[%emt 0:12:48]} 12. O-O {[%emt 0:16:54]} a6 {[%emt 0:01:14]} 13. Bd3 {[%emt 0:03:54]} Qh5 {[%emt 0:01:43]} 14. Ne4 {[%emt 0:00:26]} Qd5 {[%emt 0:03:00]} 15. Qc1 {[%emt 0:08:30]} Qxa2 {[%emt 0:03:06]} 16. Bb1 {[%emt 0:00:54]} Qa5 {[%emt 0:18:32]} 17. Qc2 {[%emt 0:00:32]} Rd8 {[%emt 0:01:12]} 18. Ng3 {[%emt 0:03:09]} Nf8 {[%emt 0:01:24]} 19. Ne5 {[%emt 0:02:47]} Qc7 {[%emt 0:14:10]} 20. f4 {[%emt 0:03:57]} Bd6 {[%emt 0:01:24]} 21. Rf3 {[%emt 0:04:41]} Bd7 {[%emt 0:01:19]} 22. Nh5 {[%emt 0:01:39]} Be8 {[%emt 0:00:16]} 23. Rg3 {[%emt 0:00:37]} g6 {[%emt 0:00:05]} 24. Rf1 {[%emt 0:05:24]} Kh8 {[%emt 0:04:07]} 25. Nf6 {[%emt 0:06:11]} Qe7 {[%emt 0:01:23]} 26. Nfg4 {[%emt 0:07:23]} h5 {[%emt 0:02:08]} 27. Nf2 {[%emt 0:00:17]} c5 {[%emt 0:02:12]} 28. dxc5 {[%emt 0:01:10]} Bxc5 {[%emt 0:00:10]} 29. Qc3 {[%emt 0:00:01]} Kg8 {[%emt 0:01:15]} 30. Ne4 {[%emt 0:01:11]} Bb4 {[%emt 0:00:18]} 31. Qb3 {[%emt 0:00:46]} Rac8 {[%emt 0:02:22]} 32. Ng5 {[%emt 0:00:39]} a5 {[%emt 0:01:23]} 33. Ngxf7 {[%emt 0:01:14]} Bxf7 {[%emt 0:04:37]} 34. Bxg6 {[%emt 0:00:08]} Nxg6 {[%emt 0:00:45]} 35. Nxg6 {[%emt 0:00:08]} Bxg6 {[%emt 0:00:04]} 36. Rxg6+ {[%emt 0:00:07]} Kh7 {[%emt 0:00:18]} 37. Rxe6 {[%emt 0:00:01]} Qg7 {[%emt 0:00:07]} 38. Re5 {[%emt 0:01:14]} Qg6 {[%emt 0:01:23]} 39. f5 {[%emt 0:01:18]} Qg8 {[%emt 0:00:39]} 40. Re6 {[%emt 0:00:35]} Rd2 {[%emt 0:00:22]} 41. g3 {[%emt 0:00:30]} Rcc2 {[%emt 0:00:52]} 42. Rf2 {[%emt 0:00:04]} Rc1+ {[%emt 0:02:03]} 43. Kg2 {[%emt 0:00:01]} Rxf2+ {[%emt 0:00:05]} 44. Kxf2 {[%emt 0:00:01]} Qd8 {[%emt 0:01:11]} 45. Kg2 {[%emt 0:01:15]} Qd2+ {[%emt 0:01:13]} 46. Kh3 {[%emt 0:00:01]} Qe2 {[%emt 0:00:30]} 47. Re7+ {[%emt 0:01:35]} 1/2-1/2